[Event "Early-Titled-Tuesday-Blitz-April-16-2024"]
[Site "Chess.com"]
[Date "2024.04.16"]
[Round "4"]
[White "2Coaches1Profile"]
[Black "Lily_Schirmbeck"]
[Result "1-0"]
[WhiteElo "2540"]
[BlackElo "1482"]
[TimeControl "180+1"]
[EndTime "8:38:17 PDT"]
[Termination "2Coaches1Profile won by resignation"]

1. d4 {[%clk 0:02:59.3]} 1... d5 {[%clk 0:02:56.3]} 2. Nf3 {[%clk 0:02:58.8]}
2... Nf6 {[%clk 0:02:55.4]} 3. Nbd2 {[%clk 0:02:59.2]} 3... g6 {[%clk
0:02:53.6]} 4. e3 {[%clk 0:02:59.7]} 4... Bg7 {[%clk 0:02:53.7]} 5. Be2 {[%clk
0:02:59]} 5... O-O {[%clk 0:02:53.5]} 6. b4 {[%clk 0:02:59.6]} 6... c6 {[%clk
0:02:53.2]} 7. c4 {[%clk 0:02:56.2]} 7... Bf5 {[%clk 0:02:51.5]} 8. O-O {[%clk
0:02:53.3]} 8... Qb6 {[%clk 0:02:47.9]} 9. a3 {[%clk 0:02:49.6]} 9... Nbd7
{[%clk 0:02:43.1]} 10. Bb2 {[%clk 0:02:41.3]} 10... a5 {[%clk 0:02:37.7]} 11. c5
{[%clk 0:02:40]} 11... Qc7 {[%clk 0:02:35.1]} 12. b5 {[%clk 0:02:37.4]} 12...
Ne4 {[%clk 0:02:23]} 13. b6 {[%clk 0:02:28.3]} 13... Qb8 {[%clk 0:02:18.5]} 14.
a4 {[%clk 0:02:27.1]} 14... e5 {[%clk 0:02:12.1]} 15. Nb3 {[%clk 0:02:18.6]}
15... exd4 {[%clk 0:02:06.2]} 16. Bxd4 {[%clk 0:01:59.5]} 16... Bxd4 {[%clk
0:02:02.2]} 17. Qxd4 {[%clk 0:01:53.7]} 17... Qe8 {[%clk 0:01:53]} 18. Rfc1
{[%clk 0:01:47.3]} 18... Qe7 {[%clk 0:01:49.9]} 19. h3 {[%clk 0:01:41]} 19...
Ndf6 {[%clk 0:01:42.2]} 20. Ne1 {[%clk 0:01:33.7]} 20... Bd7 {[%clk 0:01:38.7]}
21. Nd3 {[%clk 0:01:27.9]} 21... Rfe8 {[%clk 0:01:30.8]} 22. Re1 {[%clk
0:01:21.7]} 22... Be6 {[%clk 0:01:20.4]} 23. Kh2 {[%clk 0:01:12.6]} 23... Nd7
{[%clk 0:01:19]} 24. f3 {[%clk 0:01:06.9]} 24... Nef6 {[%clk 0:01:13.4]} 25. Nf4
{[%clk 0:01:02.1]} 25... Rad8 {[%clk 0:01:08.2]} 26. Bd3 {[%clk 0:00:56.7]}
26... Nb8 {[%clk 0:00:57.5]} 27. Nxa5 {[%clk 0:00:54]} 27... Na6 {[%clk
0:00:56.1]} 28. Bxa6 {[%clk 0:00:52.7]} 28... bxa6 {[%clk 0:00:55.4]} 29. Nxc6
{[%clk 0:00:51.6]} 29... Qd7 {[%clk 0:00:50.4]} 30. Nxd8 {[%clk 0:00:44.5]}
30... Rxd8 {[%clk 0:00:51.3]} 31. Qxf6 {[%clk 0:00:38.2]} 1-0

[Event "Early-Titled-Tuesday-Blitz-April-16-2024"]
[Site "Chess.com"]
[Date "2024.04.16"]
[Round "4"]
[White "PLAYER_2006_M"]
[Black "AlexKhripachenko"]
[Result "0-1"]
[WhiteElo "2973"]
[BlackElo "2831"]
[TimeControl "180+1"]
[EndTime "8:38:19 PDT"]
[Termination "AlexKhripachenko won by resignation"]

1. e4 {[%clk 0:03:00.9]} 1... c5 {[%clk 0:02:57.9]} 2. Nf3 {[%clk 0:03:00.7]}
2... e6 {[%clk 0:02:57.4]} 3. c3 {[%clk 0:03:00.5]} 3... d5 {[%clk 0:02:56.6]}
4. exd5 {[%clk 0:03:00.6]} 4... exd5 {[%clk 0:02:57.5]} 5. d4 {[%clk 0:02:59.7]}
5... Nc6 {[%clk 0:02:58]} 6. Bb5 {[%clk 0:02:59.6]} 6... Bd6 {[%clk 0:02:58]} 7.
O-O {[%clk 0:02:59.3]} 7... Ne7 {[%clk 0:02:58.3]} 8. dxc5 {[%clk 0:02:57.4]}
8... Bxc5 {[%clk 0:02:59.2]} 9. Nbd2 {[%clk 0:02:57.5]} 9... O-O {[%clk
0:02:59.4]} 10. Nb3 {[%clk 0:02:57.8]} 10... Bb6 {[%clk 0:02:59.3]} 11. Re1
{[%clk 0:02:56.6]} 11... Nf5 {[%clk 0:02:58.4]} 12. a4 {[%clk 0:02:56.7]} 12...
a6 {[%clk 0:02:55]} 13. Bd3 {[%clk 0:02:48.1]} 13... h6 {[%clk 0:02:54.4]} 14.
h3 {[%clk 0:02:45]} 14... Qf6 {[%clk 0:02:52.2]} 15. Bxf5 {[%clk 0:02:30.4]}
15... Bxf5 {[%clk 0:02:47.4]} 16. Be3 {[%clk 0:02:30.2]} 16... Bc7 {[%clk
0:02:42.7]} 17. Bd4 {[%clk 0:01:03.1]} 17... Nxd4 {[%clk 0:02:09.8]} 18. Qxd4
{[%clk 0:01:04]} 18... Qd6 {[%clk 0:02:09.2]} 19. Rad1 {[%clk 0:00:42.6]} 19...
Bc2 {[%clk 0:02:07.2]} 20. Nbd2 {[%clk 0:00:17.4]} 20... Bxd1 {[%clk 0:02:03]}
21. Rxd1 {[%clk 0:00:17.6]} 21... Rad8 {[%clk 0:01:58.3]} 22. Qd3 {[%clk
0:00:17.2]} 22... Rfe8 {[%clk 0:01:58]} 23. b4 {[%clk 0:00:11.1]} 23... Qf6
{[%clk 0:01:49.7]} 24. g3 {[%clk 0:00:06.4]} 24... Bb6 {[%clk 0:01:47.6]} 25.
Kg2 {[%clk 0:00:06.6]} 25... Qe6 {[%clk 0:01:41.4]} 26. Nb3 {[%clk 0:00:05.3]}
26... Qe2 {[%clk 0:01:37.8]} 27. a5 {[%clk 0:00:05.4]} 27... Qxf2+ {[%clk
0:01:37.6]} 28. Kh1 {[%clk 0:00:05.3]} 28... Re3 {[%clk 0:01:32.4]} 29. Qf1
{[%clk 0:00:03.7]} 29... Rxf3 {[%clk 0:01:31.2]} 30. Qxf2 {[%clk 0:00:02.8]}
30... Bxf2 {[%clk 0:01:32.1]} 31. Kg2 {[%clk 0:00:03.2]} 31... Rxc3 {[%clk
0:01:32.8]} 32. Kxf2 {[%clk 0:00:02.3]} 32... Rxb3 {[%clk 0:01:32.9]} 0-1

[Event "Early-Titled-Tuesday-Blitz-April-16-2024"]
[Site "Chess.com"]
[Date "2024.04.16"]
[Round "4"]
[White "ferdipy"]
[Black "SilverSwords13"]
[Result "1-0"]
[WhiteElo "2285"]
[BlackElo "2472"]
[TimeControl "180+1"]
[EndTime "8:38:19 PDT"]
[Termination "ferdipy won by resignation"]

1. e4 {[%clk 0:03:00.9]} 1... d5 {[%clk 0:02:57.4]} 2. exd5 {[%clk 0:03:00.1]}
2... Nf6 {[%clk 0:02:57.8]} 3. d4 {[%clk 0:03:00.2]} 3... Bg4 {[%clk 0:02:54]}
4. Nf3 {[%clk 0:02:58.3]} 4... Qxd5 {[%clk 0:02:50.8]} 5. Be2 {[%clk 0:02:58.8]}
5... e6 {[%clk 0:02:49.9]} 6. O-O {[%clk 0:02:57.6]} 6... Nc6 {[%clk 0:02:49.8]}
7. c4 {[%clk 0:02:57.2]} 7... Qd7 {[%clk 0:02:49.9]} 8. Nc3 {[%clk 0:02:52.3]}
8... Rd8 {[%clk 0:02:41.3]} 9. Be3 {[%clk 0:02:22]} 9... Be7 {[%clk 0:02:39.4]}
10. Nd2 {[%clk 0:02:04.8]} 10... Bxe2 {[%clk 0:02:38]} 11. Qxe2 {[%clk
0:02:04.9]} 11... Nxd4 {[%clk 0:02:37.4]} 12. Bxd4 {[%clk 0:02:01]} 12... Qxd4
{[%clk 0:02:38.3]} 13. Rad1 {[%clk 0:01:58.3]} 13... Qd3 {[%clk 0:02:20.6]} 14.
Qe5 {[%clk 0:01:55]} 14... Bd6 {[%clk 0:02:11.9]} 15. Qb5+ {[%clk 0:01:54.4]}
15... Nd7 {[%clk 0:02:00.2]} 16. Nde4 {[%clk 0:01:33.9]} 16... a6 {[%clk
0:02:00.3]} 17. Qxb7 {[%clk 0:01:25]} 17... Qxc4 {[%clk 0:02:00]} 18. Rxd6
{[%clk 0:01:23]} 18... O-O {[%clk 0:01:56.9]} 19. Rdd1 {[%clk 0:01:18.2]} 19...
Ne5 {[%clk 0:01:53.6]} 20. Rxd8 {[%clk 0:01:16.7]} 20... Rxd8 {[%clk 0:01:54.5]}
21. Qb3 {[%clk 0:01:08.9]} 21... Qc6 {[%clk 0:01:48.5]} 22. h3 {[%clk
0:01:06.8]} 22... h6 {[%clk 0:01:47.1]} 23. Rd1 {[%clk 0:01:05.4]} 23... Re8
{[%clk 0:01:43]} 24. Qa4 {[%clk 0:01:01.8]} 24... Qa8 {[%clk 0:01:41.3]} 25. Qa5
{[%clk 0:00:56.8]} 25... Nc4 {[%clk 0:01:33.5]} 26. Qxc7 {[%clk 0:00:54.6]}
26... Nxb2 {[%clk 0:01:33.9]} 27. Rd7 {[%clk 0:00:55]} 27... Rf8 {[%clk
0:01:32.4]} 28. Nd6 {[%clk 0:00:54.4]} 28... Nd3 {[%clk 0:01:16.7]} 29. Nxf7
{[%clk 0:00:50.4]} 29... Ne1 {[%clk 0:01:13.3]} 30. Nxh6+ {[%clk 0:00:48.8]}
30... Kh8 {[%clk 0:01:05.6]} 31. Rxg7 {[%clk 0:00:46.3]} 31... Rf7 {[%clk
0:00:45]} 32. Qxf7 {[%clk 0:00:43.9]} 1-0

[Event "Early-Titled-Tuesday-Blitz-April-16-2024"]
[Site "Chess.com"]
[Date "2024.04.16"]
[Round "4"]
[White "DanylaBagrov"]
[Black "JaackCamel"]
[Result "1-0"]
[WhiteElo "2474"]
[BlackElo "2226"]
[TimeControl "180+1"]
[EndTime "8:38:20 PDT"]
[Termination "DanylaBagrov won by resignation"]

1. d4 {[%clk 0:02:55.7]} 1... d5 {[%clk 0:02:59.4]} 2. c4 {[%clk 0:02:55.9]}
2... e6 {[%clk 0:02:59]} 3. cxd5 {[%clk 0:02:56.5]} 3... exd5 {[%clk 0:02:58.6]}
4. Bf4 {[%clk 0:02:57]} 4... c6 {[%clk 0:02:57.9]} 5. e3 {[%clk 0:02:56.7]} 5...
Bf5 {[%clk 0:02:57.5]} 6. Nc3 {[%clk 0:02:55.9]} 6... Nf6 {[%clk 0:02:56.3]} 7.
Nge2 {[%clk 0:02:55.6]} 7... Be7 {[%clk 0:02:51.2]} 8. Ng3 {[%clk 0:02:54]} 8...
Bg6 {[%clk 0:02:50.7]} 9. h4 {[%clk 0:02:53.8]} 9... h6 {[%clk 0:02:50.2]} 10.
h5 {[%clk 0:02:48.1]} 10... Bh7 {[%clk 0:02:49.9]} 11. Bd3 {[%clk 0:02:48.7]}
11... Bxd3 {[%clk 0:02:49.1]} 12. Qxd3 {[%clk 0:02:49.6]} 12... O-O {[%clk
0:02:41.3]} 13. Nf5 {[%clk 0:02:47.5]} 13... Nbd7 {[%clk 0:02:34.8]} 14. g4
{[%clk 0:02:47]} 14... Ne4 {[%clk 0:02:06.6]} 15. Nxe4 {[%clk 0:02:40.5]} 15...
dxe4 {[%clk 0:02:06.1]} 16. Qxe4 {[%clk 0:02:41.4]} 16... Re8 {[%clk 0:01:59.5]}
17. Qc2 {[%clk 0:02:29.1]} 17... Bb4+ {[%clk 0:01:56]} 18. Kf1 {[%clk
0:02:28.9]} 18... Nf6 {[%clk 0:01:51.5]} 19. g5 {[%clk 0:02:26.1]} 19... Ne4
{[%clk 0:01:37.2]} 20. gxh6 {[%clk 0:02:16.8]} 20... Qd5 {[%clk 0:01:32.5]} 21.
Nxg7 {[%clk 0:02:12]} 21... Ng3+ {[%clk 0:01:15]} 22. Bxg3 {[%clk 0:01:54.6]}
22... Qxh1+ {[%clk 0:01:09.7]} 23. Ke2 {[%clk 0:01:54.6]} 23... Qxa1 {[%clk
0:01:06.2]} 24. Nf5 {[%clk 0:01:38.6]} 24... Qe1+ {[%clk 0:01:01.3]} 25. Kf3
{[%clk 0:01:38.3]} 25... Qh1+ {[%clk 0:00:59.9]} 26. Ke2 {[%clk 0:01:37.9]}
26... Qxh5+ {[%clk 0:00:59.4]} 27. Kf1 {[%clk 0:01:34.4]} 27... Qh1+ {[%clk
0:00:55.6]} 28. Ke2 {[%clk 0:01:34.9]} 28... Rad8 {[%clk 0:00:45.4]} 29. Qb3
{[%clk 0:01:24]} 29... Qe1+ {[%clk 0:00:34.5]} 30. Kf3 {[%clk 0:01:22.5]} 30...
a5 {[%clk 0:00:20.6]} 31. h7+ {[%clk 0:01:21.7]} 31... Kxh7 {[%clk 0:00:08]} 32.
Qxf7+ {[%clk 0:01:22.1]} 1-0

[Event "Early-Titled-Tuesday-Blitz-April-16-2024"]
[Site "Chess.com"]
[Date "2024.04.16"]
[Round "4"]
[White "yonaltimur"]
[Black "Ginger_GM"]
[Result "0-1"]
[WhiteElo "2440"]
[BlackElo "2657"]
[TimeControl "180+1"]
[EndTime "8:38:21 PDT"]
[Termination "Ginger_GM won by resignation"]

1. e4 {[%clk 0:02:57.7]} 1... d6 {[%clk 0:02:49.6]} 2. d4 {[%clk 0:02:57.5]}
2... Nf6 {[%clk 0:02:49.3]} 3. Nc3 {[%clk 0:02:55.7]} 3... Nbd7 {[%clk
0:02:49.3]} 4. Nf3 {[%clk 0:02:52.6]} 4... e5 {[%clk 0:02:49.1]} 5. dxe5 {[%clk
0:02:51.3]} 5... dxe5 {[%clk 0:02:48.4]} 6. Bc4 {[%clk 0:02:51.4]} 6... Bb4
{[%clk 0:02:46.1]} 7. O-O {[%clk 0:02:49.9]} 7... c6 {[%clk 0:02:43.8]} 8. a3
{[%clk 0:02:46.7]} 8... Bxc3 {[%clk 0:02:38.7]} 9. bxc3 {[%clk 0:02:47.6]} 9...
O-O {[%clk 0:02:35.6]} 10. Qe2 {[%clk 0:02:46.9]} 10... Qa5 {[%clk 0:02:24.4]}
11. Rb1 {[%clk 0:02:34.3]} 11... Nb6 {[%clk 0:02:14.3]} 12. Bd3 {[%clk
0:02:25.2]} 12... Bg4 {[%clk 0:02:10.8]} 13. c4 {[%clk 0:02:11.1]} 13... Qc5
{[%clk 0:01:45.6]} 14. Bd2 {[%clk 0:02:04.6]} 14... Qe7 {[%clk 0:01:42.2]} 15.
h3 {[%clk 0:02:01.6]} 15... Bxf3 {[%clk 0:01:37.4]} 16. Qxf3 {[%clk 0:02:02.5]}
16... Nfd7 {[%clk 0:01:34.2]} 17. Bb4 {[%clk 0:01:57.4]} 17... Nc5 {[%clk
0:01:30.3]} 18. Qe3 {[%clk 0:01:53.3]} 18... Nbd7 {[%clk 0:01:28.2]} 19. Rfd1
{[%clk 0:01:51]} 19... a5 {[%clk 0:01:27.4]} 20. Bc3 {[%clk 0:01:47.7]} 20...
Rfd8 {[%clk 0:01:24.7]} 21. Be2 {[%clk 0:01:47.3]} 21... Nf8 {[%clk 0:01:22.7]}
22. Kf1 {[%clk 0:01:40.6]} 22... Rxd1+ {[%clk 0:01:00.2]} 23. Rxd1 {[%clk
0:01:39.7]} 23... Na4 {[%clk 0:00:58.9]} 24. Ba1 {[%clk 0:01:31.5]} 24... Nd7
{[%clk 0:00:52.5]} 25. f3 {[%clk 0:00:57.5]} 25... Ndc5 {[%clk 0:00:51.5]} 26.
Qd2 {[%clk 0:00:55.9]} 26... f6 {[%clk 0:00:45.3]} 27. Kf2 {[%clk 0:00:49.5]}
27... Kf7 {[%clk 0:00:43.1]} 28. Kf1 {[%clk 0:00:49.5]} 28... g5 {[%clk
0:00:39.3]} 29. Kf2 {[%clk 0:00:49.4]} 29... h5 {[%clk 0:00:39]} 30. f4 {[%clk
0:00:45.8]} 30... Nxe4+ {[%clk 0:00:36.8]} 0-1

[Event "Early-Titled-Tuesday-Blitz-April-16-2024"]
[Site "Chess.com"]
[Date "2024.04.16"]
[Round "4"]
[White "AlexeiShirov"]
[Black "Bilan_Danila"]
[Result "1-0"]
[WhiteElo "2826"]
[BlackElo "2527"]
[TimeControl "180+1"]
[EndTime "8:38:21 PDT"]
[Termination "AlexeiShirov won by checkmate"]

1. e4 {[%clk 0:03:00.9]} 1... c6 {[%clk 0:02:58.4]} 2. d4 {[%clk 0:03:00.2]}
2... d5 {[%clk 0:02:58.7]} 3. e5 {[%clk 0:03:00.8]} 3... c5 {[%clk 0:02:57.3]}
4. dxc5 {[%clk 0:02:59.6]} 4... e6 {[%clk 0:02:55.2]} 5. a3 {[%clk 0:02:59.5]}
5... Bxc5 {[%clk 0:02:55.5]} 6. b4 {[%clk 0:02:59.4]} 6... Bb6 {[%clk
0:02:46.1]} 7. Nf3 {[%clk 0:02:55]} 7... a5 {[%clk 0:02:38.5]} 8. Bb2 {[%clk
0:02:54.2]} 8... axb4 {[%clk 0:02:28.3]} 9. axb4 {[%clk 0:02:51.9]} 9... Rxa1
{[%clk 0:02:29.2]} 10. Bxa1 {[%clk 0:02:51.2]} 10... Ne7 {[%clk 0:02:21.4]} 11.
Nbd2 {[%clk 0:02:46.2]} 11... Nbc6 {[%clk 0:02:16]} 12. b5 {[%clk 0:02:44]}
12... Na7 {[%clk 0:02:06]} 13. Bd3 {[%clk 0:02:41.6]} 13... Bd7 {[%clk
0:01:59.1]} 14. Qe2 {[%clk 0:02:40.5]} 14... Ng6 {[%clk 0:01:55.7]} 15. g3
{[%clk 0:02:37]} 15... Nc8 {[%clk 0:01:09.6]} 16. h4 {[%clk 0:02:34.1]} 16...
Nge7 {[%clk 0:00:53.1]} 17. h5 {[%clk 0:02:20.9]} 17... h6 {[%clk 0:00:53.1]}
18. Rh4 {[%clk 0:02:16.7]} 18... Nf5 {[%clk 0:00:41.6]} 19. Rf4 {[%clk
0:02:14.3]} 19... Bc7 {[%clk 0:00:18.8]} 20. c4 {[%clk 0:01:24.1]} 20... dxc4
{[%clk 0:00:13.2]} 21. Nxc4 {[%clk 0:01:23.3]} 21... O-O {[%clk 0:00:11.3]} 22.
g4 {[%clk 0:01:18.5]} 22... Nh4 {[%clk 0:00:11.6]} 23. Nxh4 {[%clk 0:01:17.1]}
23... Qxh4 {[%clk 0:00:12.5]} 24. Qe4 {[%clk 0:01:16.7]} 24... f5 {[%clk
0:00:03.4]} 25. exf6 {[%clk 0:01:15.2]} 25... Bxf4 {[%clk 0:00:01.6]} 26. Qh7+
{[%clk 0:01:14.1]} 26... Kf7 {[%clk 0:00:02]} 27. Bg6# {[%clk 0:01:13.6]} 1-0

[Event "Early-Titled-Tuesday-Blitz-April-16-2024"]
[Site "Chess.com"]
[Date "2024.04.16"]
[Round "4"]
[White "KINGOF2SOAP"]
[Black "PonyQueen07"]
[Result "0-1"]
[WhiteElo "2461"]
[BlackElo "2196"]
[TimeControl "180+1"]
[EndTime "8:38:23 PDT"]
[Termination "PonyQueen07 won by resignation"]

1. e4 {[%clk 0:03:00.9]} 1... c5 {[%clk 0:02:59.8]} 2. b3 {[%clk 0:03:00.5]}
2... Nc6 {[%clk 0:02:59]} 3. Bb2 {[%clk 0:03:01]} 3... Nf6 {[%clk 0:02:56.1]} 4.
e5 {[%clk 0:03:01.5]} 4... Nd5 {[%clk 0:02:52.9]} 5. Nf3 {[%clk 0:03:02.2]} 5...
d6 {[%clk 0:02:52.3]} 6. Nc3 {[%clk 0:02:56.4]} 6... Nxc3 {[%clk 0:02:51.5]} 7.
Bxc3 {[%clk 0:02:54.1]} 7... d5 {[%clk 0:02:48]} 8. Bb5 {[%clk 0:02:50.8]} 8...
Bg4 {[%clk 0:02:38.9]} 9. Bxc6+ {[%clk 0:02:49.6]} 9... bxc6 {[%clk 0:02:37.1]}
10. O-O {[%clk 0:02:49.7]} 10... e6 {[%clk 0:02:30.4]} 11. h3 {[%clk 0:02:48.4]}
11... Bh5 {[%clk 0:02:26.5]} 12. Bb2 {[%clk 0:02:47.1]} 12... Be7 {[%clk
0:02:23.7]} 13. d4 {[%clk 0:02:39.5]} 13... cxd4 {[%clk 0:02:21.4]} 14. Bxd4
{[%clk 0:02:33.3]} 14... c5 {[%clk 0:02:21.1]} 15. Bb2 {[%clk 0:02:32]} 15... d4
{[%clk 0:02:17]} 16. Qe2 {[%clk 0:02:23]} 16... O-O {[%clk 0:02:14.2]} 17. g4
{[%clk 0:02:22.5]} 17... Bg6 {[%clk 0:02:13.3]} 18. Nh2 {[%clk 0:02:11.4]} 18...
d3 {[%clk 0:02:00.8]} 19. Qe3 {[%clk 0:01:57.8]} 19... dxc2 {[%clk 0:01:59.2]}
20. f4 {[%clk 0:01:55.3]} 20... Bd3 {[%clk 0:01:50.8]} 21. Rf2 {[%clk
0:01:50.9]} 21... Rc8 {[%clk 0:01:23.2]} 22. f5 {[%clk 0:01:30.1]} 22... c4
{[%clk 0:01:19.7]} 23. Bd4 {[%clk 0:01:30.8]} 23... Bg5 {[%clk 0:00:58.2]} 24.
Qg3 {[%clk 0:00:31.2]} 24... Qxd4 {[%clk 0:00:55.7]} 25. Nf3 {[%clk 0:00:29.5]}
25... Qxa1+ {[%clk 0:00:54.2]} 26. Kg2 {[%clk 0:00:29.4]} 26... Be3 {[%clk
0:00:53]} 27. Rf1 {[%clk 0:00:23.1]} 27... Qxf1+ {[%clk 0:00:52.1]} 0-1

[Event "Early-Titled-Tuesday-Blitz-April-16-2024"]
[Site "Chess.com"]
[Date "2024.04.16"]
[Round "4"]
[White "ATM622"]
[Black "ChEsper99"]
[Result "1-0"]
[WhiteElo "2464"]
[BlackElo "2204"]
[TimeControl "180+1"]
[EndTime "8:38:24 PDT"]
[Termination "ATM622 won by resignation"]

1. d4 {[%clk 0:03:00.9]} 1... Nf6 {[%clk 0:02:53]} 2. c4 {[%clk 0:03:00.9]} 2...
g6 {[%clk 0:02:52.9]} 3. g3 {[%clk 0:03:01.3]} 3... Bg7 {[%clk 0:02:52.9]} 4.
Bg2 {[%clk 0:03:01.5]} 4... O-O {[%clk 0:02:45.4]} 5. Nf3 {[%clk 0:03:01.7]}
5... c6 {[%clk 0:02:41.4]} 6. O-O {[%clk 0:03:02]} 6... d5 {[%clk 0:02:41.4]} 7.
b3 {[%clk 0:02:56.9]} 7... Bf5 {[%clk 0:02:40.8]} 8. Bb2 {[%clk 0:02:56]} 8...
a5 {[%clk 0:02:36.6]} 9. Nc3 {[%clk 0:02:55.6]} 9... Ne4 {[%clk 0:02:35.5]} 10.
Rc1 {[%clk 0:02:49.7]} 10... Nxc3 {[%clk 0:02:34.4]} 11. Bxc3 {[%clk 0:02:50]}
11... Be4 {[%clk 0:02:35.3]} 12. Qd2 {[%clk 0:02:45.7]} 12... a4 {[%clk
0:02:29.7]} 13. Ne5 {[%clk 0:02:34]} 13... Bxg2 {[%clk 0:02:26.5]} 14. Kxg2
{[%clk 0:02:34.9]} 14... Nd7 {[%clk 0:02:26.4]} 15. Rfd1 {[%clk 0:02:17.7]}
15... Nxe5 {[%clk 0:02:14.3]} 16. dxe5 {[%clk 0:02:17]} 16... dxc4 {[%clk
0:02:14.8]} 17. bxc4 {[%clk 0:02:12.3]} 17... e6 {[%clk 0:01:55.1]} 18. Bb4
{[%clk 0:02:04]} 18... Qxd2 {[%clk 0:01:47.1]} 19. Rxd2 {[%clk 0:01:58.2]} 19...
Rfd8 {[%clk 0:01:36.2]} 20. Rxd8+ {[%clk 0:01:56]} 20... Rxd8 {[%clk 0:01:37.1]}
21. Bd6 {[%clk 0:01:56.3]} 21... Bf8 {[%clk 0:01:28.4]} 22. c5 {[%clk
0:01:55.9]} 22... f6 {[%clk 0:01:23]} 23. f4 {[%clk 0:01:52.9]} 23... fxe5
{[%clk 0:01:22.8]} 24. fxe5 {[%clk 0:01:52.8]} 24... Ra8 {[%clk 0:00:40]} 25.
Rb1 {[%clk 0:01:44.8]} 25... Ra7 {[%clk 0:00:35.8]} 26. Rb6 {[%clk 0:01:38.6]}
26... Kf7 {[%clk 0:00:28.5]} 27. Bb8 {[%clk 0:01:25.6]} 27... Ra5 {[%clk
0:00:16.6]} 28. Rxb7+ {[%clk 0:01:25.3]} 28... Kg8 {[%clk 0:00:13.8]} 29. Bd6
{[%clk 0:01:25]} 29... Bxd6 {[%clk 0:00:12.5]} 30. exd6 {[%clk 0:01:20.6]} 30...
Kf8 {[%clk 0:00:10]} 31. Rb8+ {[%clk 0:01:20.5]} 1-0

[Event "Early-Titled-Tuesday-Blitz-April-16-2024"]
[Site "Chess.com"]
[Date "2024.04.16"]
[Round "4"]
[White "Larina_Maria"]
[Black "yuriydovzik"]
[Result "0-1"]
[WhiteElo "2318"]
[BlackElo "2146"]
[TimeControl "180+1"]
[EndTime "8:38:27 PDT"]
[Termination "yuriydovzik won by checkmate"]

1. e4 {[%clk 0:03:00.9]} 1... c6 {[%clk 0:02:58.8]} 2. d4 {[%clk 0:02:59.3]}
2... Na6 {[%clk 0:02:58.8]} 3. Bxa6 {[%clk 0:02:55.5]} 3... Qa5+ {[%clk
0:02:57.9]} 4. Nc3 {[%clk 0:02:53.7]} 4... Qxa6 {[%clk 0:02:57.9]} 5. Nge2
{[%clk 0:02:53.3]} 5... e6 {[%clk 0:02:51.8]} 6. O-O {[%clk 0:02:53]} 6... d5
{[%clk 0:02:51.3]} 7. e5 {[%clk 0:02:53.1]} 7... b6 {[%clk 0:02:43.9]} 8. Re1
{[%clk 0:02:52.2]} 8... c5 {[%clk 0:02:43.3]} 9. Be3 {[%clk 0:02:46.8]} 9... Bd7
{[%clk 0:02:27.7]} 10. a4 {[%clk 0:02:45.9]} 10... Rc8 {[%clk 0:02:24.1]} 11. f4
{[%clk 0:02:42.3]} 11... Ne7 {[%clk 0:02:19.7]} 12. Kh1 {[%clk 0:02:38.4]} 12...
Nf5 {[%clk 0:02:18.2]} 13. Bg1 {[%clk 0:02:39]} 13... h5 {[%clk 0:02:14.9]} 14.
Qd2 {[%clk 0:02:31.5]} 14... h4 {[%clk 0:02:10.7]} 15. Bf2 {[%clk 0:02:28.2]}
15... Be7 {[%clk 0:01:55.7]} 16. Nb5 {[%clk 0:02:18.6]} 16... Bxb5 {[%clk
0:01:35.2]} 17. axb5 {[%clk 0:02:19.5]} 17... Qxb5 {[%clk 0:01:34.7]} 18. Rxa7
{[%clk 0:02:20.2]} 18... Qxb2 {[%clk 0:01:20.4]} 19. dxc5 {[%clk 0:02:18.3]}
19... Bxc5 {[%clk 0:00:57.6]} 20. Bxc5 {[%clk 0:02:18.2]} 20... bxc5 {[%clk
0:00:55]} 21. Rea1 {[%clk 0:02:01.1]} 21... O-O {[%clk 0:00:50.5]} 22. R7a2
{[%clk 0:01:49.1]} 22... Qb4 {[%clk 0:00:47.3]} 23. c3 {[%clk 0:01:49.1]} 23...
Qe4 {[%clk 0:00:42.4]} 24. Ra4 {[%clk 0:01:46.5]} 24... Qe3 {[%clk 0:00:36.4]}
25. Qxe3 {[%clk 0:01:25.1]} 25... Nxe3 {[%clk 0:00:35.7]} 26. Kg1 {[%clk
0:01:25.4]} 26... Rb8 {[%clk 0:00:30.6]} 27. Kf2 {[%clk 0:01:22.9]} 27... Ng4+
{[%clk 0:00:23.1]} 28. Kg1 {[%clk 0:01:18.2]} 28... Rb2 {[%clk 0:00:21.4]} 29.
R4a2 {[%clk 0:01:18.7]} 29... Rfb8 {[%clk 0:00:19.2]} 30. h3 {[%clk 0:01:17.4]}
30... Rxa2 {[%clk 0:00:17.9]} 31. Rxa2 {[%clk 0:01:17.5]} 31... Rb1+ {[%clk
0:00:17.6]} 32. Nc1 {[%clk 0:01:14.2]} 32... Rxc1# {[%clk 0:00:17.3]} 0-1

[Event "Early-Titled-Tuesday-Blitz-April-16-2024"]
[Site "Chess.com"]
[Date "2024.04.16"]
[Round "4"]
[White "mishanick"]
[Black "kachsona"]
[Result "1-0"]
[WhiteElo "3055"]
[BlackElo "2611"]
[TimeControl "180+1"]
[EndTime "8:38:33 PDT"]
[Termination "mishanick won on time"]

1. d4 {[%clk 0:03:00.9]} 1... d5 {[%clk 0:02:59.5]} 2. c4 {[%clk 0:03:01.3]}
2... e6 {[%clk 0:02:58.7]} 3. Nc3 {[%clk 0:03:01.9]} 3... Nf6 {[%clk 0:02:57.9]}
4. Bg5 {[%clk 0:03:01.5]} 4... Be7 {[%clk 0:02:55]} 5. e3 {[%clk 0:02:56.1]}
5... h6 {[%clk 0:02:52.8]} 6. Bh4 {[%clk 0:02:55.1]} 6... O-O {[%clk 0:02:52.6]}
7. Qc2 {[%clk 0:02:55.8]} 7... Nbd7 {[%clk 0:02:46.6]} 8. cxd5 {[%clk 0:02:56]}
8... exd5 {[%clk 0:02:42.2]} 9. Bd3 {[%clk 0:02:56.2]} 9... c5 {[%clk
0:02:40.5]} 10. dxc5 {[%clk 0:02:55.6]} 10... Nxc5 {[%clk 0:02:38.7]} 11. Nf3
{[%clk 0:02:56.1]} 11... Nxd3+ {[%clk 0:02:34.2]} 12. Qxd3 {[%clk 0:02:53.2]}
12... Bg4 {[%clk 0:02:18.9]} 13. Nd4 {[%clk 0:02:49.8]} 13... Rc8 {[%clk
0:02:10.4]} 14. O-O {[%clk 0:02:48.8]} 14... Qa5 {[%clk 0:01:44.5]} 15. h3
{[%clk 0:02:45.6]} 15... Be6 {[%clk 0:01:43.1]} 16. Rfd1 {[%clk 0:02:40.9]}
16... Rfd8 {[%clk 0:01:40.7]} 17. a3 {[%clk 0:02:35.8]} 17... a6 {[%clk
0:01:35.8]} 18. Rac1 {[%clk 0:02:34.7]} 18... b5 {[%clk 0:01:04.5]} 19. Nce2
{[%clk 0:02:32.3]} 19... Qb6 {[%clk 0:00:58.3]} 20. Nf4 {[%clk 0:02:27.2]} 20...
Rc4 {[%clk 0:00:42.2]} 21. b3 {[%clk 0:02:11.1]} 21... Rcc8 {[%clk 0:00:23]} 22.
Ndxe6 {[%clk 0:02:06.9]} 22... fxe6 {[%clk 0:00:20.1]} 23. Qg6 {[%clk
0:02:07.6]} 23... Rxc1 {[%clk 0:00:15.9]} 24. Rxc1 {[%clk 0:02:07.4]} 24... Qd6
{[%clk 0:00:09.4]} 25. b4 {[%clk 0:01:24.7]} 25... e5 {[%clk 0:00:09]} 26. Nd3
{[%clk 0:01:25.1]} 26... Qe6 {[%clk 0:00:06.4]} 27. Rc7 {[%clk 0:01:22.9]} 27...
Re8 {[%clk 0:00:05.2]} 28. Bxf6 {[%clk 0:01:09.4]} 28... Bxf6 {[%clk 0:00:05.1]}
29. Nc5 {[%clk 0:01:10]} 1-0